fUSD/lending_fUSD_20260107
["ID","MTS","AMOUNT","RATE_DAILY","PERIOD"]
[400757868,1767817843260,-171.3,0.00017178,2]
[400757869,1767817843269,-150.0,0.00017178,2]
[400757870,1767817843278,-300.0,0.0001718,2]
[400757871,1767817843287,-300.0,0.00017185,2]
[400757872,1767817843298,-300.0,0.0001719,2]
[400757873,1767817843307,-1000.0,0.00017191,2]
[400757874,1767817843317,-166.66,0.00017192,2]
[400757875,1767817843327,-300.0,0.00017197,2]
[400757876,1767817843337,-512.0,0.00017205,2]
[400757877,1767817843346,-487.0,0.00017205,2]
[400757878,1767817843356,-500.0,0.00017205,2]
[400757879,1767817843366,-150.0,0.00017244,2]
[400757880,1767817843375,-512.0,0.0001726,2]
[400757881,1767817843385,-487.0,0.0001726,2]
[400757882,1767817843395,-500.0,0.0001726,2]
[400757883,1767817843404,-1623.07,0.00017264,2]
[400757884,1767817843414,-2500.0,0.00017264,2]
[400757885,1767817843425,-2500.0,0.00017264,2]
[400757886,1767817843434,-300.0,0.00017268,2]
[400757887,1767817843443,-300.0,0.00017273,2]
[400757888,1767817843452,-300.0,0.00017281,2]
[400757889,1767817843461,-300.0,0.00017284,2]
[400757890,1767817843471,-1767.0,0.0001729,2]
[400757891,1767817843480,-1767.0,0.00017294,2]
[400757892,1767817843489,-12301.6933758,0.00017294,2]
[400757893,1767817843498,-5109.45441568,0.00017304,2]
[400757894,1767817843507,-300.0,0.00017304,2]
[400757895,1767817843517,-512.0,0.00017315,2]
[400757896,1767817843526,-487.0,0.00017315,2]
[400757897,1767817843536,-500.0,0.00017315,2]
[400757898,1767817843546,-300.0,0.00017324,2]
[400757899,1767817843555,-304.2281947,0.00017325,2]
[400757900,1767817843564,-300.0,0.00017359,2]
[400757901,1767817843574,-512.0,0.00017369,2]
[400757902,1767817843584,-487.0,0.00017369,2]
[400757903,1767817843593,-500.0,0.00017369,2]
[400757904,1767817843603,-300.0,0.00017378,2]
[400757905,1767817843613,-334.5472959,0.00017382,2]
[400757906,1767817843622,-287.61899177,0.00017382,2]
[400757907,1767817843632,-642.94,0.00017382,2]
[400757908,1767817843643,-300.0,0.00017387,2]
[400757909,1767817843653,-4818.0,0.00017395,2]
[400757910,1767817843663,-161.58,0.00017395,2]
[400757911,1767817843672,-619.404,0.00017395,2]
[400757912,1767817843682,-634.2954026,0.00017398,2]
[400757913,1767817843691,-3364.0,0.00017408,2]
[400757914,1767817843701,-1688.95959214,0.00017419,2]
[400757915,1767817843710,-827.5,0.00017419,2]
[400757916,1767817843720,-866.0,0.00017423,2]
[400757917,1767817843732,-512.0,0.00017424,2]
[400757918,1767817843741,-487.0,0.00017424,2]
[400757919,1767817843751,-496.0,0.00017424,2]
[400757920,1767817843760,-150.0,0.00017442,2]
[400757921,1767817843770,-181.06,0.00017444,2]
[400757922,1767817843779,-1068.29795681,0.00017453,2]
[400757923,1767817843788,-300.0,0.00017456,2]
[400757924,1767817843798,-300.0,0.00017456,2]
[400757925,1767817843807,-300.0,0.00017468,2]
[400757926,1767817843816,-300.0,0.00017471,2]
[400757927,1767817843826,-512.0,0.00017479,2]
[400757928,1767817843835,-487.0,0.00017479,2]
[400757929,1767817843844,-500.0,0.00017479,2]
[400757930,1767817843854,-2107.0,0.00017488,2]
[400757931,1767817843863,-2000.0,0.000175,2]
[400757932,1767817843873,-1600.70015005,0.000175,2]
[400757933,1767817843882,-569.55560122,0.00017511,2]
[400757934,1767817843892,-300.0,0.00017511,2]
[400757935,1767817843901,-300.0,0.00017514,2]
[400757936,1767817843910,-150.0,0.00017526,2]
[400757937,1767817843919,-150.0,0.00017527,2]
[400757938,1767817843928,-512.0,0.00017534,2]
[400757939,1767817843937,-487.0,0.00017534,2]
[400757940,1767817843947,-240.82358149,0.00017534,2]
[400757941,1767817843956,-1623.07,0.00017538,2]
[400757942,1767817843966,-300.0,0.0001754,2]
[400757943,1767817843976,-150.0,0.00017556,2]
[400757944,1767817843985,-150.0,0.00017578,2]
[400757945,1767817843995,-150.0,0.00017579,2]
[400757946,1767817844004,-300.0,0.00017581,2]
[400757947,1767817844013,-300.0,0.00017588,2]
[400757948,1767817844023,-512.0,0.00017589,2]
[400757949,1767817844032,-487.0,0.00017589,2]
[400757950,1767817844042,-12301.6933758,0.00017597,2]
[400757951,1767817844052,-5109.45441568,0.00017602,2]
[400757952,1767817844061,-300.0,0.00017602,2]
[400757953,1767817844074,-300.0,0.00017611,2]
[400757954,1767817844083,-150.0,0.00017613,2]
[400757955,1767817844093,-300.0,0.00017622,2]
[400757956,1767817844102,-157.51038049,0.00017624,2]
[400757957,1767817844111,-8547.72063637,0.0001764,2]
[400757958,1767817844120,-512.0,0.00017643,2]
[400757959,1767817844129,-487.0,0.00017643,2]
[400757960,1767817844139,-150.0,0.0001765,2]
[400757961,1767817844148,-667.99,0.0001765,2]
[400757962,1767817844159,-661.33,0.0001765,2]
[400757963,1767817844168,-661.33,0.0001765,2]
[400757964,1767817844178,-661.33,0.0001765,2]
[400757965,1767817844187,-661.33,0.0001765,2]
[400757966,1767817844196,-661.33,0.0001765,2]
[400757967,1767817844206,-1453.44,0.0001765,2]
[400757968,1767817844215,-640.24385345,0.00017657,2]
[400757969,1767817844224,-150.0,0.00017675,2]
[400757970,1767817844234,-482.63,0.00017684,2]
[400757971,1767817844243,-321.7,0.00017691,2]
[400757972,1767817844253,-166.66,0.00017693,2]
[400757973,1767817844263,-512.0,0.00017698,2]
[400757974,1767817844272,-487.0,0.00017698,2]
[400757975,1767817844283,-1000.0,0.000177,2]
[400757976,1767817844292,-150.0,0.00017706,2]
[400757977,1767817844303,-482.63,0.00017708,2]
[400757978,1767817844313,-482.63,0.00017708,2]
[400757979,1767817844325,-482.63,0.00017708,2]
[400757980,1767817844335,-983.12,0.00017708,2]
[400757981,1767817844345,-496.3,0.00017708,2]
[400757982,1767817844355,-556.08,0.00017708,2]
[400757983,1767817844365,-179.04,0.00017708,2]
[400757984,1767817844375,-472.41,0.00017708,2]
[400757985,1767817844384,-466.59,0.00017708,2]
[400757986,1767817844394,-466.59,0.00017708,2]
[400757987,1767817844403,-500.0,0.00017726,2]
[400757988,1767817844412,-450.04111853,0.00017739,2]
[400757989,1767817844422,-25000.0,0.00017742,3]
[400757990,1767817844431,-787.35487633,0.00017749,2]
[400757991,1767817844442,-25000.0,0.0001775,3]
[400757992,1767817844451,-300.0,0.00017751,2]
[400757993,1767817844460,-512.0,0.00017753,2]
[400757994,1767817844470,-487.0,0.00017753,2]
[400757995,1767817844479,-25000.0,0.00017759,3]
[400757996,1767817844488,-300.0,0.00017761,2]
[400757997,1767817844497,-25000.0,0.00017768,3]
[400757998,1767817844507,-25000.0,0.00017777,3]
[400757999,1767817844516,-300.0,0.00017779,2]
[400758000,1767817844526,-787.35487633,0.00017779,2]
[400758001,1767817844535,-300.0,0.00017783,2]
[400758002,1767817844544,-25000.0,0.00017786,3]
[400758003,1767817844553,-300.0,0.00017789,2]
[400758004,1767817844563,-25000.0,0.00017794,3]
[400758005,1767817844573,-1000.0,0.000178,2]
[400758006,1767817844582,-150.0,0.00017803,2]
[400758007,1767817844591,-25000.0,0.00017803,3]
[400758008,1767817844600,-150.0,0.00017805,2]
[400758009,1767817844610,-512.0,0.00017808,2]
[400758010,1767817844620,-487.0,0.00017808,2]
[400758011,1767817844630,-1000.0,0.00017808,7]
[400758012,1767817844639,-3000.0,0.00017808,7]
[400758013,1767817844649,-787.35487633,0.00017809,2]
[400758014,1767817844659,-25000.0,0.00017812,3]
[400758015,1767817844668,-1623.07,0.00017812,2]
[400758016,1767817844677,-500.0,0.00017812,2]
[400758017,1767817844687,-2448.81970011,0.00017812,2]
[400758018,1767817844696,-7419.99154,0.0001782,2]
[400758019,1767817844706,-7419.99154,0.0001782,2]
[400758020,1767817844715,-25000.0,0.00017821,3]
[400758021,1767817844725,-300.0,0.00017821,2]
[400758022,1767817844738,-25000.0,0.0001783,3]
[400758023,1767817844747,-261.94980575,0.0001783,2]
[400758024,1767817844757,-7419.99154,0.0001783,2]
[400758025,1767817844767,-1429.0,0.00017837,2]
[400758026,1767817844778,-25000.0,0.00017838,3]
[400758027,1767817844787,-787.35487633,0.0001784,2]
[400758028,1767817844797,-161.23858714,0.00017841,2]
[400758029,1767817844809,-150.0,0.00017843,2]
[400758030,1767817844818,-181.06,0.00017844,2]
[400758031,1767817844828,-500.0,0.00017846,2]
[400758032,1767817844839,-300.0,0.00017846,2]
[400758033,1767817844850,-25000.0,0.00017847,3]
[400758034,1767817844861,-189.05,0.00017849,2]
[400758035,1767817844872,-1000.0,0.0001785,2]
[400758036,1767817844881,-1000.0,0.0001785,2]
[400758037,1767817844890,-630.21,0.0001785,2]
[400758038,1767817844899,-300.0,0.00017855,2]
[400758039,1767817844909,-150.0,0.00017855,2]
[400758040,1767817844918,-200.0,0.00017855,2]
[400758041,1767817844927,-200.0,0.00017856,2]
[400758042,1767817844937,-25000.0,0.00017856,3]
[400758043,1767817844946,-200.0,0.00017856,2]
[400758044,1767817844955,-200.0,0.00017856,2]
[400758045,1767817844965,-7419.99155,0.0001786,2]
[400758046,1767817844974,-512.0,0.00017862,2]
[400758047,1767817844983,-487.0,0.00017862,2]
[400758048,1767817844997,-300.0,0.00017864,2]
[400758049,1767817845006,-25000.0,0.00017865,3]
[400758050,1767817845016,-181.06,0.00017867,2]
[400758051,1767817845025,-787.35487633,0.0001787,2]
[400758052,1767817845035,-300.0,0.0001787,2]
[400758053,1767817845046,-25000.0,0.00017874,3]
[400758054,1767817845055,-7419.99154,0.0001788,2]
[400758055,1767817845065,-25000.0,0.00017882,3]
[400758056,1767817845074,-300.0,0.00017883,2]
[400758057,1767817845084,-300.0,0.00017885,2]
[400758058,1767817845093,-300.0,0.0001789,2]
[400758059,1767817845103,-500.0,0.0001789,2]
[400758060,1767817845112,-25000.0,0.00017891,3]
[400758061,1767817845122,-500.0,0.00017893,2]
[400758062,1767817845132,-500.0,0.00017893,2]
[400758063,1767817845141,-92.2598918,0.00017893,2]
[400758068,1767817846077,-407.7401082,0.00017893,2]
[400758069,1767817846087,-500.0,0.00017893,2]
[400758070,1767817846096,-500.0,0.00017893,2]
[400758071,1767817846105,-151.0,0.00017897,2]
[400758072,1767817846115,-500.0,0.00017899,2]
[400758073,1767817846124,-500.0,0.00017899,2]
[400758074,1767817846134,-500.0,0.00017899,2]
[400758075,1767817846143,-500.0,0.00017899,2]
[400758076,1767817846153,-500.0,0.00017899,2]
[400758077,1767817846162,-500.0,0.00017899,2]
[400758078,1767817846171,-217.07652128,0.00017899,2]
[400758079,1767817846180,-1068.29795681,0.000179,2]
[400758080,1767817846189,-25000.0,0.000179,3]
[400758081,1767817846198,-10000.0,0.000179,2]
[400758082,1767817846207,-5109.45441568,0.000179,2]
[400758083,1767817846217,-634.2954026,0.000179,2]
[400758084,1767817846229,-14633.43151327,0.000179,3]
[400758085,1767817846238,-12301.6933758,0.000179,2]
[400758086,1767817846259,-1000.0,0.000179,2]
[400758087,1767817846269,-569.55560122,0.000179,2]
[400758088,1767817846279,-787.35487633,0.000179,2]
[400758089,1767817846288,-500.0,0.000179,2]
[400758090,1767817846299,-500.0,0.000179,2]
[400758091,1767817846308,-500.0,0.000179,2]
[400758092,1767817846318,-500.0,0.000179,2]
[400758093,1767817846328,-500.0,0.000179,2]
[400758094,1767817846337,-500.0,0.000179,2]
[400758095,1767817846347,-500.0,0.000179,2]
[400758096,1767817846357,-500.0,0.000179,2]
[400758097,1767817846367,-500.0,0.000179,2]
[400758098,1767817846377,-500.0,0.000179,2]
[400758099,1767817846387,-500.0,0.000179,2]
[400758100,1767817846397,-313.34622116,0.000179,2]
[400758101,1767817846408,-203711.80646766,0.000179,2]
[400758102,1767817846419,-296098.73882686,0.000179,2]
[400758103,1767817846429,-8798.0,0.000179,2]
[400758104,1767817846438,-3364.0,0.0001791,2]
[400758105,1767817846448,-7419.99154,0.0001791,2]
[400758106,1767817846459,-513.1858208,0.00017917,2]
[400758107,1767817846469,-510.0,0.00017917,2]
[400758108,1767817846479,-300.0,0.00017923,2]
[400758109,1767817846488,-300.0,0.00017936,2]
[400758110,1767817846499,-1429.0,0.00017937,2]
[400758111,1767817846508,-500.0,0.00017945,2]
[400758112,1767817846518,-150.0,0.00017954,2]
[400758113,1767817846528,-500.0,0.0001797,2]
[400758114,1767817846538,-983.46328676,0.0001797,2]
[400758115,1767817846548,-1000.0,0.0001797,2]
[400758116,1767817846558,-1000.0,0.0001797,2]
[400758117,1767817846569,-1000.0,0.0001797,2]
[400758118,1767817846578,-1000.0,0.0001797,2]
[400758119,1767817846588,-1109.90852601,0.0001797,2]
[400758120,1767817846598,-300.0,0.00017971,2]
[400758121,1767817846608,-300.0,0.00017979,2]
[400758122,1767817846619,-500.0,0.00017982,2]
[400758123,1767817846629,-300.0,0.00017989,2]
[400758124,1767817846639,-1455.64956121,0.0001799,2]
[400758126,1767817846649,-1455.64956121,0.0001799,2]
[400758128,1767817846659,-151.0,0.00017997,2]
[400758129,1767817846668,-500.0,0.00017998,2]
[400758130,1767817846678,-146594.4042012,0.00017999,2]
[400758131,1767817846688,-160945.2417603,0.00017999,2]
[400758132,1767817846698,-300.0,0.00017999,2]
[400758133,1767817846710,-179.47029521,0.00017999,2]
[400758134,1767817846721,-500.0,0.00017999,2]
[400758135,1767817846732,-500.0,0.00017999,2]
[400758136,1767817846743,-174.14927633,0.00017999,2]
[400758137,1767817846753,-635.10977893,0.00017999,2]
[400758138,1767817846763,-666.0,0.00017999,2]
[400758139,1767817846773,-300.0,0.00017999,2]
[400758140,1767817846783,-300.0,0.00017999,2]
[400758141,1767817846793,-666.0,0.00017999,2]
[400758142,1767817846805,-666.0,0.00017999,2]
[400758143,1767817846816,-300.0,0.00017999,2]
[400758144,1767817846826,-35969.0383542,0.00017999,2]
[400758145,1767817846835,-300.0,0.00017999,2]
[400758146,1767817846845,-666.0,0.00017999,2]
[400758147,1767817846854,-22212.9972099,0.00017999,2]
[400758148,1767817846864,-184.3400586,0.00017999,2]
[400758149,1767817846873,-300.0,0.00017999,2]
[400758150,1767817846883,-5826.21400436,0.00017999,2]
[400758151,1767817846893,-5053457.98535064,0.00018,2]
[400758152,1767817846915,-347.58102532,0.00018,2]
[400758153,1767817848223,-445.37106374,0.00018,2]
[400758154,1767817848259,-1662.39502085,0.00018,2]
[400758155,1767817848289,-1807.69,0.00018,2]
[400758156,1767817850200,-482.63,0.00016082,2]
[400758157,1767817850210,-489.18328667,0.00017041,2]
[400758158,1767817852076,-423.57,0.00016826,2]
[400758159,1767817852086,-172.14671333,0.00017041,2]
[400758160,1767817852095,-171.3,0.00017178,2]
[400758161,1767817852104,-1150.34597317,0.00017395,2]
[400758162,1767817852119,-500.0,0.00017395,2]
[400758163,1767817859776,480570.40092057,0.00014999,2]
[400758164,1767817894161,920.0,0.00014699,2]
[400758165,1767817896549,-1878.094,0.00014699,2]
[400758166,1767817896580,-170.011,0.00014699,2]
[400758171,1767818097908,-200.0,0.00014973,2]
[400758172,1767818125058,-234.25131594,0.00014873,2]
[400758331,1767818308095,-150.0,0.00014738,2]
[400758334,1767818390071,500.0,0.00014575,2]
[400758337,1767818625942,805.3,7.401e-05,2]
[400758338,1767818626110,805.3,7.775e-05,2]
[400758339,1767818626265,805.3,8.149e-05,2]
[400758340,1767818626708,805.3,8.524e-05,2]
[400758341,1767818626843,805.3,8.898e-05,2]
[400758342,1767818626942,805.3,9.272e-05,2]
[400758343,1767818627167,497.97579891,9.646e-05,2]
[400758344,1767818627192,307.32420109,9.646e-05,2]
[400758345,1767818627289,805.3,0.00010021,2]
[400758346,1767818627362,805.3,0.00010395,2]
[400758347,1767818627486,805.3,0.00010769,2]
[400758348,1767818627715,805.3,0.00011143,2]
[400758349,1767818628027,805.3,0.00011518,2]
[400758350,1767818628256,34.38579891,0.00011892,2]
[400758351,1767818628277,770.91420109,0.00011892,2]
[400758352,1767818628455,805.3,0.00012266,2]
[400758353,1767818628804,805.3,0.0001264,2]
[400758354,1767818629005,805.3,0.00013015,2]
[400758355,1767818629292,805.3,0.00013389,2]
[400758356,1767818629461,805.3,0.00013763,2]
[400758357,1767818629671,805.3,0.00014137,2]
[400758358,1767818630176,805.3,0.00014512,2]
[400758360,1767818654124,173.34,0.00011664,2]
[400758362,1767818778473,534.31,0.00014572,2]
[400758363,1767818808953,826.21,0.00014405,2]
[400758365,1767818874589,-156.21597287,0.00014799,2]
[400758366,1767818880333,-258.05181576,0.00014799,2]
[400758367,1767818882241,-241.65238321,0.00014799,2]
[400758368,1767818882364,150.0,0.00014798,2]
[400758369,1767818884793,-291.0,0.00014799,2]
[400758370,1767818886028,-448.55216699,0.00014799,2]
[400758371,1767818888310,-168.42467707,0.00014799,2]
[400758372,1767818889763,-239.48419986,0.00014799,2]
[400758373,1767818892505,-215.52745536,0.00014799,2]
[400758374,1767818894128,-157.570551,0.00014799,2]
[400758375,1767818896971,-361.54564304,0.00014799,2]
[400758376,1767818900386,-490.16894231,0.00014799,2]
[400758377,1767818901911,-162.8541716,0.00014799,2]
[400758378,1767818903883,-281.94726149,0.00014799,2]
[400758379,1767818906898,-477.58526062,0.00014799,2]
[400758380,1767818908578,-197.03465754,0.00014799,2]
[400758381,1767818910287,-428.14258391,0.00014799,2]
[400758382,1767818913397,-421.75076159,0.00014799,2]
[400758383,1767818914635,-202.48078499,0.00014799,2]
[400758384,1767818916537,-287.17334878,0.00014799,2]
[400758385,1767818917700,-300.0,0.00014799,2]
[400758386,1767818919351,-263.10165428,0.00014799,2]
[400758387,1767818923315,-500.0,0.00014799,2]
[400758388,1767818925541,-217.54854858,0.00014799,2]
[400758389,1767818926865,-207.14352158,0.00014799,2]
[400758390,1767818929453,-500.0,0.00014799,2]
[400758391,1767818932128,-500.0,0.00014799,2]
[400758392,1767818934583,-213.68542173,0.00014799,2]
[400758393,1767818939358,-191.37810671,0.00014799,2]
[400758394,1767818941349,297.89105987,0.00014798,2]
[400758395,1767818941388,500.0,0.00014798,2]
[400758396,1767818941457,216.49098205,0.00014798,2]
[400758397,1767818941908,500.0,0.00014798,2]
[400758398,1767818942288,300.0,0.00014798,2]
[400758399,1767818942317,-199.17460269,0.00014799,2]
[400758400,1767818942841,161.56040042,0.00014798,2]
[400758401,1767818942982,294.22196371,0.00014798,2]
[400758402,1767818943597,-300.82539731,0.00014799,2]
[400758403,1767818945639,401.28234765,0.00014798,2]
[400758415,1767818957862,427.16670095,0.00014793,2]
[400758416,1767818965960,-317.8102,0.00014799,2]
[400758417,1767818968394,-321.61320066,0.00014799,2]
[400758418,1767818970649,-163.26587176,0.00014799,2]
[400758419,1767818973444,-250.74602017,0.00014799,2]
[400758420,1767818976715,-309.34970793,0.00014799,2]
[400758421,1767818978298,-485.41599061,0.00014799,2]
[400758422,1767818982489,-169.3283259,0.00014799,2]
[400758423,1767818989231,-378.9886536,0.00014799,2]
[400758424,1767818991935,-154.74431651,0.00014799,2]
[400758425,1767818994379,-247.43962627,0.00014799,2]
[400758426,1767818995712,5089.45441572,0.00014793,2]
[400758427,1767818999058,-220.82894331,0.00014799,2]
[400758428,1767819001419,300.0,0.00014798,2]
[400758429,1767819002472,1200.0,0.00014798,2]
[400758430,1767819002508,300.0,0.00014798,2]
[400758431,1767819003175,-423.86501122,0.00014799,2]
[400758432,1767819005553,-178.38679934,0.00014799,2]
[400758433,1767819006598,-490.96599061,0.00014799,2]
[400758434,1767819006733,965.62,0.00014789,2]
[400758435,1767819007266,965.62,0.00014789,2]
[400758436,1767819008580,-427.51910702,0.00014799,2]
[400758437,1767819013241,6268.77,0.00014793,2]
[400758438,1767819013264,5026.90623247,0.00014793,2]
[400758439,1767819013818,-195.0,0.00014799,2]
[400758440,1767819015512,-259.860247,0.00014799,2]
[400758441,1767819018138,-196.84127733,0.00014799,2]
[400758442,1767819020413,-235.66563197,0.00014799,2]
[400758443,1767819023369,-176.13498878,0.00014799,2]
[400758444,1767819025283,-300.0,0.00014799,2]
[400758445,1767819025590,398.66100807,0.00014793,2]
[400758446,1767819028750,-240.89711016,0.00014799,2]
[400758447,1767819031446,-300.0,0.00014799,2]
[400758451,1767819031800,-300.0,0.00014799,2]
[400758452,1767819031814,-1011.19177213,0.00014799,2]
[400758453,1767819031931,-9123.7316167,0.00014799,2]
[400758454,1767819031943,-812.31500085,0.00014799,2]
[400758455,1767819031954,-366.13195705,0.00014799,2]
[400758456,1767819031965,-12643.5547456,0.00014799,2]
[400758457,1767819032001,-196589.63142704,0.00014799,2]
[400758458,1767819032012,-39408.82856905,0.00014799,2]
[400758460,1767819032023,-360821.9440098,0.00014799,2]
[400758463,1767819032049,-1596.52263188,0.00014799,2]
[400758558,1767819038002,-362001.46135888,0.00014799,2]
[400758559,1767819038013,-250.0,0.00014894,2]
[400758560,1767819038022,-1400.54641871,0.00014894,2]
[400758561,1767819038032,-7774.59,0.00014894,2]
[400758562,1767819038042,-250.0,0.00014896,2]
[400758563,1767819038052,-163.746,0.00014898,2]
[400758564,1767819038062,-1332.9361,0.00014898,2]
[400758565,1767819038072,-1157.3201,0.00014898,2]
[400758566,1767819038083,-2500.0,0.00014899,2]
[400758567,1767819038092,-500.0,0.00014899,2]
[400758568,1767819038101,-500.0,0.00014899,2]
[400758570,1767819038111,-500.0,0.00014899,2]
[400758572,1767819038120,-500.0,0.00014899,2]
[400758574,1767819038129,-500.0,0.00014899,2]
[400758576,1767819038139,-500.0,0.00014899,2]
[400758578,1767819038148,-500.0,0.00014899,2]
[400758580,1767819038157,-500.0,0.00014899,2]
[400758582,1767819038167,-500.0,0.00014899,2]
[400758584,1767819038176,-500.0,0.00014899,2]
[400758586,1767819038186,-500.0,0.00014899,2]
[400758588,1767819038195,-313.34622116,0.00014899,2]
[400758590,1767819038204,-28098.65978973,0.00014899,2]
[400758592,1767819038213,-1456.07,0.00014899,2]
[400758594,1767819038222,-2238.475,0.00014966,2]
[400758595,1767819038232,-170.011,0.00014966,2]
[400758597,1767819038241,-203.20327401,0.00014973,2]
[400758599,1767819038250,-299.99,0.00014973,2]
[400758602,1767819038259,-351.97,0.00014973,2]
[400758604,1767819038269,-150.99,0.00014973,2]
[400758605,1767819038278,-9999.99,0.00014973,2]
[400758607,1767819038287,-529.93,0.00014973,2]
[400758609,1767819038297,-9999.99,0.00014973,2]
[400758611,1767819038306,-500.0,0.0001499,2]
[400758614,1767819038317,-313.27,0.0001499,2]
[400758615,1767819038326,-744.27,0.0001499,2]
[400758617,1767819038336,-9999.99,0.0001499,2]
[400758620,1767819038345,-4999.99,0.0001499,2]
[400758621,1767819038355,-151.0,0.0001499,2]
[400758623,1767819038364,-151.0,0.0001499,2]
[400758626,1767819038373,-151.0,0.0001499,2]
[400758628,1767819038382,-151.0,0.0001499,2]
[400758629,1767819038391,-151.0,0.0001499,2]
[400758632,1767819038401,-151.0,0.0001499,2]
[400758634,1767819038410,-151.0,0.0001499,2]
[400758635,1767819038420,-151.0,0.0001499,2]
[400758637,1767819038429,-151.0,0.0001499,2]
[400758640,1767819038438,-151.0,0.0001499,2]
[400758642,1767819038448,-151.0,0.0001499,2]
[400758644,1767819038457,-499.99,0.00014997,2]
[400758646,1767819038466,-16381.00951254,0.00014998,2]
[400758648,1767819038498,-2913.66801472,0.00014998,2]
[400758649,1767819038584,-664.38666661,0.00014998,2]
[400758650,1767819038622,-131.7999999,0.00014998,2]
[400758651,1767819038635,-19534.23753567,0.00014998,2]
[400758652,1767819038645,-500.0,0.00014998,2]
[400758654,1767819038654,-500.0,0.00014998,2]
[400758656,1767819038663,-500.0,0.00014998,2]
[400758658,1767819038673,-500.0,0.00014998,2]
[400758660,1767819038682,-500.0,0.00014998,2]
[400758662,1767819038691,-500.0,0.00014998,2]
[400758664,1767819038701,-500.0,0.00015073,2]
[400758666,1767819038710,-502.16378022,0.00015073,2]
[400758668,1767819038720,-556.0741427,0.00015073,2]
[400758670,1767819038730,-411.91622264,0.00015073,2]
[400758672,1767819038740,-500.0,0.00015073,2]
[400758674,1767819038748,-500.0,0.00015073,2]
[400758676,1767819038758,-500.0,0.00015073,2]
[400758678,1767819038767,-500.0,0.00015073,2]
[400758680,1767819038776,-500.0,0.00015073,2]
[400758682,1767819038785,-500.0,0.00015073,2]
[400758684,1767819038795,-500.0,0.00015073,2]
[400758686,1767819038804,-500.0,0.00015073,2]
[400758688,1767819038813,-500.0,0.00015073,2]
[400758690,1767819038822,-500.0,0.00015073,2]
[400758692,1767819038832,-500.0,0.00015073,2]
[400758694,1767819038841,-500.0,0.00015073,2]
[400758696,1767819038851,-500.0,0.00015073,2]
[400758698,1767819038860,-413.08976684,0.00015073,2]
[400758700,1767819038870,-500.0,0.00015073,2]
[400758702,1767819038879,-1000.0,0.00015099,2]
[400758704,1767819038889,-826.21,0.00015125,2]
[400758706,1767819038898,-5089.45441568,0.00015138,2]
[400758708,1767819038907,-11295.67623244,0.00015138,2]
[400758710,1767819038916,-1456.07,0.00015173,2]
[400758712,1767819038926,-500.0,0.00015209,2]
[400758714,1767819038938,-500.0,0.00015209,2]
[400758716,1767819038947,-283.51547018,0.00015209,2]
[400758718,1767819038957,-500.0,0.00015218,2]
[400758720,1767819038966,-500.0,0.00015218,2]
[400758722,1767819038976,-500.0,0.00015218,2]
[400758724,1767819038985,-427.16670091,0.00015237,2]
[400758726,1767819038994,-10352.71586606,0.00015318,2]
[400758728,1767819039004,-1456.07,0.00015447,2]
[400758730,1767819039013,-5089.45441568,0.00015483,2]
[400758732,1767819039022,-11295.67623244,0.00015483,2]
[400758735,1767819039032,-1029.13192156,0.00015621,2]